[Event "*** Titled Tuesday Blitz"]
[Site "Chess.com"]
[Date "2020.04.28"]
[Round "6"]
[White "kakakz"]
[Black "Valuebet2000"]
[Result "0-1"]
[WhiteElo "2403"]
[BlackElo "2577"]
[TimeControl "180+1"]
[EndTime "11:07:53 PDT"]
[Termination "Valuebet2000 won by resignation"]

1. d4 {[%clk 0:03:00.1]} 1... d5 {[%clk 0:02:58.6]} 2. Nf3 {[%clk 0:03:00]} 2...
Nf6 {[%clk 0:02:58.6]} 3. c4 {[%clk 0:02:59.4]} 3... e6 {[%clk 0:02:58.7]} 4. g3
{[%clk 0:02:59.4]} 4... Be7 {[%clk 0:02:58.4]} 5. Bg2 {[%clk 0:02:59.4]} 5...
O-O {[%clk 0:02:58.9]} 6. Nc3 {[%clk 0:02:59.1]} 6... dxc4 {[%clk 0:02:58.3]} 7.
Ne5 {[%clk 0:02:58.9]} 7... Nc6 {[%clk 0:02:58.3]} 8. Bxc6 {[%clk 0:02:59.3]}
8... bxc6 {[%clk 0:02:58.4]} 9. Nxc6 {[%clk 0:03:00.2]} 9... Qe8 {[%clk
0:02:58.3]} 10. Nxe7+ {[%clk 0:03:01.1]} 10... Qxe7 {[%clk 0:02:58.7]} 11. Qa4
{[%clk 0:02:58.3]} 11... c5 {[%clk 0:02:59]} 12. Qxc4 {[%clk 0:02:24.1]} 12...
Bb7 {[%clk 0:02:56.4]} 13. O-O {[%clk 0:02:19.7]} 13... cxd4 {[%clk 0:02:55.6]}
14. Qxd4 {[%clk 0:02:19.2]} 14... e5 {[%clk 0:02:24.9]} 15. Qh4 {[%clk
0:02:16.7]} 15... Qe6 {[%clk 0:02:18.2]} 16. e4 {[%clk 0:01:40.2]} 16... Rfd8
{[%clk 0:01:45.9]} 17. Bg5 {[%clk 0:01:35.6]} 17... Rd3 {[%clk 0:01:42.6]} 18.
Rad1 {[%clk 0:01:25.5]} 18... Rad8 {[%clk 0:01:41.8]} 19. Bxf6 {[%clk
0:01:16.7]} 19... Qxf6 {[%clk 0:01:41.2]} 20. Qxf6 {[%clk 0:01:16.4]} 20... gxf6
{[%clk 0:01:42.1]} 21. Nd5 {[%clk 0:00:44.3]} 21... Rxd1 {[%clk 0:01:26.8]} 22.
Rxd1 {[%clk 0:00:45.2]} 22... Kf8 {[%clk 0:01:27.2]} 23. f3 {[%clk 0:00:33.4]}
23... f5 {[%clk 0:01:18.9]} 24. Kf2 {[%clk 0:00:23.1]} 24... fxe4 {[%clk
0:01:18.2]} 25. fxe4 {[%clk 0:00:23.1]} 25... f5 {[%clk 0:01:18.4]} 26. Ke3
{[%clk 0:00:19.3]} 26... fxe4 {[%clk 0:00:58.3]} 27. Nc3 {[%clk 0:00:17.5]}
27... Rb8 {[%clk 0:00:45.6]} 28. Rd7 {[%clk 0:00:16.9]} 28... Bc6 {[%clk
0:00:38]} 29. Rd6 {[%clk 0:00:13.9]} 29... Be8 {[%clk 0:00:34.3]} 30. b3 {[%clk
0:00:13.2]} 30... Bg6 {[%clk 0:00:34.3]} 31. Nxe4 {[%clk 0:00:13]} 31... Rb4
{[%clk 0:00:34.4]} 32. Nc3 {[%clk 0:00:10.7]} 32... Rb7 {[%clk 0:00:26.9]} 33.
Rd5 {[%clk 0:00:10.6]} 33... Rc7 {[%clk 0:00:25.7]} 34. Ne4 {[%clk 0:00:10.4]}
34... Rc2 {[%clk 0:00:24.3]} 35. Rxe5 {[%clk 0:00:09.5]} 35... Rxa2 {[%clk
0:00:22.7]} 36. h4 {[%clk 0:00:09.6]} 36... Rb2 {[%clk 0:00:20]} 37. Nc5 {[%clk
0:00:09.8]} 37... Rc2 {[%clk 0:00:17.9]} 38. h5 {[%clk 0:00:09.3]} 38... Bf7
{[%clk 0:00:16.6]} 39. g4 {[%clk 0:00:08.7]} 39... h6 {[%clk 0:00:15.7]} 40. Kd3
{[%clk 0:00:08.2]} 40... Rg2 {[%clk 0:00:15.2]} 41. Re4 {[%clk 0:00:07]} 41...
Kg7 {[%clk 0:00:15.2]} 42. Rf4 {[%clk 0:00:06.8]} 42... Rg3+ {[%clk 0:00:15.2]}
43. Kd4 {[%clk 0:00:05.5]} 43... Bxb3 {[%clk 0:00:15.1]} 44. Nxb3 {[%clk
0:00:05.5]} 44... Rxb3 {[%clk 0:00:16]} 45. Ke4 {[%clk 0:00:04.4]} 45... Rb4+
{[%clk 0:00:15.3]} 46. Kf3 {[%clk 0:00:04.7]} 46... Rxf4+ {[%clk 0:00:14.9]} 47.
Kxf4 {[%clk 0:00:05.6]} 47... Kf6 {[%clk 0:00:15.2]} 48. Ke4 {[%clk 0:00:06.5]}
48... Kg5 {[%clk 0:00:14.9]} 49. Kf3 {[%clk 0:00:06.9]} 49... a5 {[%clk
0:00:14.6]} 50. Ke3 {[%clk 0:00:07.3]} 50... a4 {[%clk 0:00:14.8]} 51. Kd4
{[%clk 0:00:07.9]} 51... a3 {[%clk 0:00:15.2]} 52. Kc3 {[%clk 0:00:08.8]} 52...
Kxg4 {[%clk 0:00:15.3]} 53. Kb3 {[%clk 0:00:09.1]} 53... Kxh5 {[%clk 0:00:15.5]}
54. Kxa3 {[%clk 0:00:08.7]} 54... Kg4 {[%clk 0:00:16]} 0-1

[Event "*** Titled Tuesday Blitz"]
[Site "Chess.com"]
[Date "2020.04.28"]
[Round "6"]
[White "Olga_Zhuravleva"]
[Black "Winehouse83"]
[Result "1-0"]
[WhiteElo "2262"]
[BlackElo "2518"]
[TimeControl "180+1"]
[EndTime "11:07:53 PDT"]
[Termination "Olga_Zhuravleva won by resignation"]

1. e4 {[%clk 0:03:00.9]} 1... c5 {[%clk 0:02:58.6]} 2. Nf3 {[%clk 0:03:00.3]}
2... e6 {[%clk 0:02:58.8]} 3. d4 {[%clk 0:03:00.6]} 3... cxd4 {[%clk 0:02:59.7]}
4. Nxd4 {[%clk 0:03:00.9]} 4... Nc6 {[%clk 0:02:59.9]} 5. Nc3 {[%clk 0:03:01.5]}
5... Qc7 {[%clk 0:03:00.5]} 6. f4 {[%clk 0:02:59]} 6... a6 {[%clk 0:02:49.4]} 7.
Nxc6 {[%clk 0:02:57.5]} 7... bxc6 {[%clk 0:02:43]} 8. Qf3 {[%clk 0:02:58.1]}
8... d5 {[%clk 0:02:39.4]} 9. Bd3 {[%clk 0:02:52.7]} 9... Nf6 {[%clk 0:02:32.8]}
10. e5 {[%clk 0:02:51.2]} 10... Nd7 {[%clk 0:02:31.1]} 11. O-O {[%clk
0:02:51.7]} 11... Bc5+ {[%clk 0:02:27.7]} 12. Kh1 {[%clk 0:02:50.3]} 12... O-O
{[%clk 0:02:26.7]} 13. Bd2 {[%clk 0:02:43.7]} 13... f5 {[%clk 0:02:11.9]} 14.
exf6 {[%clk 0:02:41.3]} 14... Rxf6 {[%clk 0:02:05.7]} 15. Qh3 {[%clk 0:01:40.7]}
15... Rh6 {[%clk 0:01:58.1]} 16. Qg3 {[%clk 0:01:41]} 16... Nf6 {[%clk
0:01:53.4]} 17. Ne2 {[%clk 0:01:33.4]} 17... Bd6 {[%clk 0:01:44.5]} 18. h3
{[%clk 0:01:25.8]} 18... c5 {[%clk 0:01:32.7]} 19. c3 {[%clk 0:01:20.9]} 19...
Bb7 {[%clk 0:01:30.3]} 20. Rae1 {[%clk 0:01:14.8]} 20... Re8 {[%clk 0:01:07.7]}
21. Ng1 {[%clk 0:01:15]} 21... Nh5 {[%clk 0:01:02.5]} 22. Qg4 {[%clk 0:01:11.7]}
22... Nf6 {[%clk 0:00:57]} 23. Qg3 {[%clk 0:01:06.2]} 23... Qf7 {[%clk
0:00:55.3]} 24. Nf3 {[%clk 0:01:03]} 24... Nh5 {[%clk 0:00:54.2]} 25. Qg4 {[%clk
0:00:57.9]} 25... Nxf4 {[%clk 0:00:39.8]} 26. Ng5 {[%clk 0:00:54.1]} 26... Qh5
{[%clk 0:00:39.8]} 27. Qxh5 {[%clk 0:00:49.8]} 27... Nxh5 {[%clk 0:00:39]} 28.
Nf7 {[%clk 0:00:42]} 28... Ng3+ {[%clk 0:00:34.6]} 29. Kg1 {[%clk 0:00:42.4]}
29... Nxf1 {[%clk 0:00:18.1]} 30. Rxf1 {[%clk 0:00:36]} 30... Rf6 {[%clk
0:00:13.4]} 31. Nxd6 {[%clk 0:00:31.2]} 31... Re7 {[%clk 0:00:11.7]} 32. Bg5
{[%clk 0:00:20.1]} 32... Rxf1+ {[%clk 0:00:10.9]} 33. Kxf1 {[%clk 0:00:20.7]}
33... Rd7 {[%clk 0:00:11.4]} 34. Nxb7 {[%clk 0:00:20.8]} 34... Rxb7 {[%clk
0:00:12.3]} 35. Bc1 {[%clk 0:00:21.5]} 35... c4 {[%clk 0:00:12.4]} 36. Bc2
{[%clk 0:00:20.9]} 36... e5 {[%clk 0:00:12.7]} 37. Ke2 {[%clk 0:00:21.5]} 37...
g6 {[%clk 0:00:13.2]} 38. b3 {[%clk 0:00:20.1]} 38... Rc7 {[%clk 0:00:11]} 39.
b4 {[%clk 0:00:19.4]} 39... d4 {[%clk 0:00:09.6]} 40. cxd4 {[%clk 0:00:18.4]}
40... exd4 {[%clk 0:00:10.5]} 41. Be4 {[%clk 0:00:17.7]} 41... d3+ {[%clk
0:00:10.1]} 42. Ke3 {[%clk 0:00:16.7]} 42... Kf7 {[%clk 0:00:10.4]} 43. Kd4
{[%clk 0:00:15]} 43... Ke6 {[%clk 0:00:10.4]} 44. Bd5+ {[%clk 0:00:14.8]} 44...
Kf5 {[%clk 0:00:10.3]} 45. Bxc4 {[%clk 0:00:15.3]} 45... Rd7+ {[%clk 0:00:08.4]}
46. Ke3 {[%clk 0:00:15.5]} 46... Ke5 {[%clk 0:00:08.2]} 47. Bb2+ {[%clk
0:00:14]} 47... Kf5 {[%clk 0:00:07.7]} 48. Bxd3+ {[%clk 0:00:14.5]} 48... Kg5
{[%clk 0:00:05.8]} 49. g3 {[%clk 0:00:13.4]} 49... h5 {[%clk 0:00:05.7]} 50. Bc1
{[%clk 0:00:12]} 50... Kh6 {[%clk 0:00:05.6]} 51. Bxa6 {[%clk 0:00:11.6]} 51...
Rc7 {[%clk 0:00:04]} 52. Bd2 {[%clk 0:00:10.7]} 52... Rc6 {[%clk 0:00:04.4]} 53.
b5 {[%clk 0:00:10.5]} 53... Rc2 {[%clk 0:00:05]} 54. Kd3+ {[%clk 0:00:10.2]} 1-0

[Event "*** Titled Tuesday Blitz"]
[Site "Chess.com"]
[Date "2020.04.28"]
[Round "6"]
[White "nabukatnezarr"]
[Black "VALPARAISO37"]
[Result "1-0"]
[WhiteElo "2524"]
[BlackElo "2357"]
[TimeControl "180+1"]
[EndTime "11:07:53 PDT"]
[Termination "nabukatnezarr won by resignation"]

1. d4 {[%clk 0:03:00.9]} 1... Nf6 {[%clk 0:02:59.2]} 2. Bg5 {[%clk 0:03:01.4]}
2... c5 {[%clk 0:02:48.6]} 3. d5 {[%clk 0:03:00.7]} 3... g6 {[%clk 0:02:46.9]}
4. Bxf6 {[%clk 0:02:59.9]} 4... exf6 {[%clk 0:02:38.9]} 5. Nc3 {[%clk
0:02:48.4]} 5... d6 {[%clk 0:02:34.6]} 6. e3 {[%clk 0:02:47.5]} 6... Bg7 {[%clk
0:02:34.6]} 7. g3 {[%clk 0:02:47.7]} 7... f5 {[%clk 0:02:34.6]} 8. Nge2 {[%clk
0:02:47.1]} 8... O-O {[%clk 0:02:34.5]} 9. Bg2 {[%clk 0:02:47.6]} 9... Nd7
{[%clk 0:02:34.3]} 10. O-O {[%clk 0:02:48.1]} 10... b6 {[%clk 0:02:34]} 11. a4
{[%clk 0:02:46.7]} 11... a6 {[%clk 0:02:33.7]} 12. Rb1 {[%clk 0:02:45.7]} 12...
Rb8 {[%clk 0:02:31.6]} 13. b4 {[%clk 0:02:44.1]} 13... Bb7 {[%clk 0:02:19.3]}
14. b5 {[%clk 0:02:39.3]} 14... a5 {[%clk 0:02:16.9]} 15. Na2 {[%clk 0:02:27.3]}
15... Re8 {[%clk 0:02:15.4]} 16. Nac1 {[%clk 0:02:26.7]} 16... Ne5 {[%clk
0:02:13.8]} 17. Nd3 {[%clk 0:02:24.7]} 17... Nc4 {[%clk 0:02:12.8]} 18. Qc1
{[%clk 0:02:13.7]} 18... Qg5 {[%clk 0:02:10.8]} 19. Nef4 {[%clk 0:01:55.9]}
19... Qd8 {[%clk 0:02:08.5]} 20. Re1 {[%clk 0:01:54.6]} 20... h5 {[%clk
0:02:04.9]} 21. h4 {[%clk 0:01:54.1]} 21... Bh6 {[%clk 0:02:02.9]} 22. Nb2
{[%clk 0:01:50.8]} 22... Ne5 {[%clk 0:01:58.6]} 23. Nfd3 {[%clk 0:01:43.1]}
23... Ng4 {[%clk 0:01:56.8]} 24. Nc4 {[%clk 0:01:40.7]} 24... Ba8 {[%clk
0:01:47.2]} 25. Qd2 {[%clk 0:01:39.7]} 25... Bg7 {[%clk 0:01:42.7]} 26. c3
{[%clk 0:01:39.1]} 26... Re7 {[%clk 0:01:38.4]} 27. Rbc1 {[%clk 0:01:30.7]}
27... Nf6 {[%clk 0:01:36.3]} 28. f3 {[%clk 0:01:22.5]} 28... Bxd5 {[%clk
0:01:34.4]} 29. Ncb2 {[%clk 0:01:19.7]} 29... Ba8 {[%clk 0:01:32.4]} 30. c4
{[%clk 0:01:18.6]} 30... d5 {[%clk 0:01:31.5]} 31. cxd5 {[%clk 0:01:19.5]} 31...
Nxd5 {[%clk 0:01:26.3]} 32. Nc4 {[%clk 0:01:11.1]} 32... Nb4 {[%clk 0:01:24.7]}
33. Red1 {[%clk 0:01:06.6]} 33... Rd7 {[%clk 0:01:24.7]} 34. Nxb4 {[%clk
0:00:51.9]} 34... Rxd2 {[%clk 0:01:22.3]} 35. Rxd2 {[%clk 0:00:52.5]} 35... Qe7
{[%clk 0:01:16.2]} 36. Nc6 {[%clk 0:00:49.2]} 36... Bxc6 {[%clk 0:01:12.5]} 37.
bxc6 {[%clk 0:00:50.1]} 37... Rc8 {[%clk 0:01:03.4]} 38. f4 {[%clk 0:00:49.7]}
38... Qe6 {[%clk 0:00:58.4]} 39. Rd6 {[%clk 0:00:45.6]} 39... Qe7 {[%clk
0:00:56.6]} 40. Rd7 {[%clk 0:00:40.1]} 40... Qe6 {[%clk 0:00:54.9]} 41. Rd6
{[%clk 0:00:40.4]} 41... Qe7 {[%clk 0:00:48.2]} 42. Kf2 {[%clk 0:00:40.4]} 42...
Bf8 {[%clk 0:00:44]} 43. Rcd1 {[%clk 0:00:34.6]} 43... Qe8 {[%clk 0:00:40.1]}
44. Rd7 {[%clk 0:00:21.4]} 44... Qe6 {[%clk 0:00:36.5]} 45. Bd5 {[%clk
0:00:20.9]} 45... Rxc6 {[%clk 0:00:19.9]} 46. Bxe6 {[%clk 0:00:20.5]} 46... Rxe6
{[%clk 0:00:19.1]} 47. Rb7 {[%clk 0:00:18.6]} 47... Bg7 {[%clk 0:00:16]} 48.
Rd8+ {[%clk 0:00:17.6]} 48... Kh7 {[%clk 0:00:14.6]} 49. Rxf7 {[%clk 0:00:17.5]}
49... Re7 {[%clk 0:00:15.2]} 50. Rxe7 {[%clk 0:00:17.5]} 50... Kh6 {[%clk
0:00:14.3]} 51. Rxg7 {[%clk 0:00:16.9]} 51... Kxg7 {[%clk 0:00:14.2]} 52. Nxb6
{[%clk 0:00:17.8]} 52... Kf6 {[%clk 0:00:14.7]} 53. Nc4 {[%clk 0:00:15.3]} 53...
Ke7 {[%clk 0:00:14.5]} 54. Rd5 {[%clk 0:00:15.5]} 54... g5 {[%clk 0:00:15.3]}
55. Rxc5 {[%clk 0:00:14.7]} 55... gxh4 {[%clk 0:00:13.4]} 56. gxh4 {[%clk
0:00:15.6]} 56... Ke6 {[%clk 0:00:13.2]} 57. Rxa5 {[%clk 0:00:15.7]} 57... Kf6
{[%clk 0:00:13.9]} 58. Re5 {[%clk 0:00:15.9]} 58... Kg6 {[%clk 0:00:13.6]} 59.
a5 {[%clk 0:00:15.8]} 1-0

[Event "*** Titled Tuesday Blitz"]
[Site "Chess.com"]
[Date "2020.04.28"]
[Round "6"]
[White "Susal_De_Silva"]
[Black "MartinMatthiesen"]
[Result "0-1"]
[WhiteElo "2274"]
[BlackElo "2475"]
[TimeControl "180+1"]
[EndTime "11:07:53 PDT"]
[Termination "MartinMatthiesen won by resignation"]

1. e4 {[%clk 0:03:00.9]} 1... c5 {[%clk 0:02:59.5]} 2. Nf3 {[%clk 0:03:01.2]}
2... d6 {[%clk 0:02:59.4]} 3. Bb5+ {[%clk 0:03:01.4]} 3... Bd7 {[%clk
0:02:56.2]} 4. Bxd7+ {[%clk 0:03:01]} 4... Qxd7 {[%clk 0:02:56.4]} 5. c4 {[%clk
0:03:00.8]} 5... Nf6 {[%clk 0:02:54]} 6. Nc3 {[%clk 0:03:00.6]} 6... g6 {[%clk
0:02:54.2]} 7. d4 {[%clk 0:03:00.7]} 7... cxd4 {[%clk 0:02:52.5]} 8. Nxd4 {[%clk
0:03:01.4]} 8... Bg7 {[%clk 0:02:52.6]} 9. O-O {[%clk 0:03:02]} 9... O-O {[%clk
0:02:52.6]} 10. h3 {[%clk 0:03:02.2]} 10... Rc8 {[%clk 0:02:49.7]} 11. b3 {[%clk
0:02:56.6]} 11... Nc6 {[%clk 0:02:24.3]} 12. Be3 {[%clk 0:02:55.3]} 12... Qd8
{[%clk 0:02:20.4]} 13. Rc1 {[%clk 0:02:49.6]} 13... a6 {[%clk 0:02:16.3]} 14.
Qd2 {[%clk 0:02:29.7]} 14... Rab8 {[%clk 0:02:11.4]} 15. Rfd1 {[%clk 0:02:28.6]}
15... Qa5 {[%clk 0:01:39.5]} 16. Nd5 {[%clk 0:01:35.5]} 16... Qxd2 {[%clk
0:01:31.4]} 17. Rxd2 {[%clk 0:01:15]} 17... Nxd5 {[%clk 0:00:13.3]} 18. exd5
{[%clk 0:01:10.5]} 18... Nxd4 {[%clk 0:00:13.1]} 19. Bxd4 {[%clk 0:01:10.7]}
19... Bh6 {[%clk 0:00:13.2]} 20. Be3 {[%clk 0:01:09.8]} 20... Bxe3 {[%clk
0:00:13.2]} 21. fxe3 {[%clk 0:01:10]} 21... b5 {[%clk 0:00:14.1]} 22. Rd4 {[%clk
0:01:08.4]} 22... bxc4 {[%clk 0:00:13.5]} 23. Rdxc4 {[%clk 0:01:07]} 23... Rxc4
{[%clk 0:00:13.6]} 24. Rxc4 {[%clk 0:01:07.3]} 24... a5 {[%clk 0:00:13.8]} 25.
e4 {[%clk 0:01:04.4]} 25... Kg7 {[%clk 0:00:12.6]} 26. Kf2 {[%clk 0:01:04.9]}
26... Kf6 {[%clk 0:00:13]} 27. Ke3 {[%clk 0:01:05.5]} 27... Rb7 {[%clk
0:00:13.2]} 28. Kd4 {[%clk 0:00:59.8]} 28... Rb5 {[%clk 0:00:12.6]} 29. Rc3
{[%clk 0:00:39.9]} 29... g5 {[%clk 0:00:11.9]} 30. Rf3+ {[%clk 0:00:39.3]} 30...
Kg6 {[%clk 0:00:12.4]} 31. Rc3 {[%clk 0:00:38.9]} 31... h5 {[%clk 0:00:12.6]}
32. Rc7 {[%clk 0:00:38.6]} 32... Kf6 {[%clk 0:00:12.7]} 33. Rc3 {[%clk
0:00:36.2]} 33... Rb4+ {[%clk 0:00:12.6]} 34. Rc4 {[%clk 0:00:36.2]} 34... Rb5
{[%clk 0:00:13.1]} 35. Rc3 {[%clk 0:00:31.6]} 35... h4 {[%clk 0:00:13.2]} 36.
Rf3+ {[%clk 0:00:31.1]} 36... Kg6 {[%clk 0:00:13.6]} 37. Rc3 {[%clk 0:00:24.7]}
37... f6 {[%clk 0:00:13.7]} 38. Rc4 {[%clk 0:00:24.1]} 38... g4 {[%clk
0:00:12.3]} 39. hxg4 {[%clk 0:00:23.8]} 39... Rb7 {[%clk 0:00:11.7]} 40. Ra4
{[%clk 0:00:23.2]} 40... Rb5 {[%clk 0:00:11.5]} 41. Kc4 {[%clk 0:00:19.9]} 41...
Rc5+ {[%clk 0:00:11.1]} 42. Kd4 {[%clk 0:00:20.5]} 42... Kg5 {[%clk 0:00:11.6]}
43. a3 {[%clk 0:00:20]} 43... Kxg4 {[%clk 0:00:11.1]} 44. b4 {[%clk 0:00:20.5]}
44... axb4 {[%clk 0:00:11.5]} 45. axb4 {[%clk 0:00:21]} 45... Rc2 {[%clk
0:00:11.8]} 46. b5 {[%clk 0:00:21.2]} 46... Rxg2 {[%clk 0:00:08.9]} 47. Kc4
{[%clk 0:00:19.7]} 47... Rc2+ {[%clk 0:00:08.1]} 48. Kb3 {[%clk 0:00:18.7]}
48... Rc8 {[%clk 0:00:08.1]} 49. e5+ {[%clk 0:00:19.1]} 49... Kg3 {[%clk
0:00:07.8]} 50. exd6 {[%clk 0:00:19.2]} 50... exd6 {[%clk 0:00:08.1]} 51. Kb4
{[%clk 0:00:18]} 51... h3 {[%clk 0:00:08.4]} 52. Ra3+ {[%clk 0:00:18.4]} 52...
Kg4 {[%clk 0:00:07.6]} 53. Ra2 {[%clk 0:00:18.1]} 53... Rh8 {[%clk 0:00:06]} 54.
b6 {[%clk 0:00:18]} 54... h2 {[%clk 0:00:06]} 55. b7 {[%clk 0:00:17.5]} 55...
h1=Q {[%clk 0:00:05.6]} 0-1

[Event "*** Titled Tuesday Blitz"]
[Site "Chess.com"]
[Date "2020.04.28"]
[Round "6"]
[White "ShieldingOff"]
[Black "icychess54"]
[Result "0-1"]
[WhiteElo "2015"]
[BlackElo "2260"]
[TimeControl "180+1"]
[EndTime "11:07:53 PDT"]
[Termination "icychess54 won on time"]

1. d4 {[%clk 0:03:00.9]} 1... d5 {[%clk 0:02:44.6]} 2. c4 {[%clk 0:02:59.3]}
2... c6 {[%clk 0:02:44.8]} 3. Nf3 {[%clk 0:02:58.7]} 3... Nf6 {[%clk 0:02:45.3]}
4. g3 {[%clk 0:02:58.6]} 4... e6 {[%clk 0:02:45.7]} 5. Qc2 {[%clk 0:02:58.1]}
5... Nbd7 {[%clk 0:02:46.1]} 6. Bg2 {[%clk 0:02:58.3]} 6... Be7 {[%clk
0:02:46.7]} 7. O-O {[%clk 0:02:58.3]} 7... O-O {[%clk 0:02:47.2]} 8. b3 {[%clk
0:02:57.7]} 8... Re8 {[%clk 0:02:47.3]} 9. Bb2 {[%clk 0:02:58.2]} 9... Nf8
{[%clk 0:02:47.5]} 10. Nfd2 {[%clk 0:02:57.2]} 10... b6 {[%clk 0:02:47.1]} 11.
cxd5 {[%clk 0:02:48.1]} 11... cxd5 {[%clk 0:02:46.5]} 12. Rc1 {[%clk 0:02:42.2]}
12... Ba6 {[%clk 0:02:45.8]} 13. e4 {[%clk 0:02:38.7]} 13... Rc8 {[%clk
0:02:41.9]} 14. Nc3 {[%clk 0:02:35]} 14... dxe4 {[%clk 0:02:31.5]} 15. Ndxe4
{[%clk 0:02:34.2]} 15... Qxd4 {[%clk 0:02:24]} 16. Qb1 {[%clk 0:01:59.6]} 16...
Bd3 {[%clk 0:02:22]} 17. Rc2 {[%clk 0:01:43.4]} 17... Nxe4 {[%clk 0:02:03.9]}
18. Nxe4 {[%clk 0:01:42]} 18... Bxc2 {[%clk 0:02:01.1]} 19. Bxd4 {[%clk
0:01:41]} 19... Bxb1 {[%clk 0:02:01.2]} 20. Rxb1 {[%clk 0:01:40.9]} 20... Nd7
{[%clk 0:01:59.2]} 21. h4 {[%clk 0:01:36.2]} 21... Nf6 {[%clk 0:01:57.5]} 22.
Ng5 {[%clk 0:01:33.7]} 22... h6 {[%clk 0:01:56]} 23. Nf3 {[%clk 0:01:31.2]}
23... Red8 {[%clk 0:01:56.3]} 24. Re1 {[%clk 0:01:29.6]} 24... Nd5 {[%clk
0:01:44.9]} 25. Ba1 {[%clk 0:01:20.2]} 25... Rc2 {[%clk 0:01:41.5]} 26. Nd4
{[%clk 0:01:07.7]} 26... Rxa2 {[%clk 0:01:41.2]} 27. Nc6 {[%clk 0:01:07.2]}
27... Rd7 {[%clk 0:01:29.8]} 28. Bxd5 {[%clk 0:01:05.9]} 28... exd5 {[%clk
0:01:21.5]} 29. Nxe7+ {[%clk 0:00:54.5]} 29... Rxe7 {[%clk 0:01:14.8]} 30. Rxe7
{[%clk 0:00:54.4]} 30... Rxa1+ {[%clk 0:01:14.9]} 31. Kg2 {[%clk 0:00:54.9]}
31... d4 {[%clk 0:01:08.3]} 32. Rd7 {[%clk 0:00:52]} 32... a5 {[%clk 0:00:55.4]}
33. Rxd4 {[%clk 0:00:50.9]} 33... Ra3 {[%clk 0:00:55.9]} 34. b4 {[%clk
0:00:45.8]} 34... Ra4 {[%clk 0:00:33.2]} 35. Rd8+ {[%clk 0:00:45.2]} 35... Kh7
{[%clk 0:00:33.8]} 36. bxa5 {[%clk 0:00:44.3]} 36... Rxa5 {[%clk 0:00:34.2]} 37.
Rb8 {[%clk 0:00:43.3]} 37... Rb5 {[%clk 0:00:34.4]} 38. h5 {[%clk 0:00:40.7]}
38... Rb3 {[%clk 0:00:29.6]} 39. Rb7 {[%clk 0:00:34.6]} 39... b5 {[%clk
0:00:30.5]} 40. Rxf7 {[%clk 0:00:32.7]} 40... b4 {[%clk 0:00:28.1]} 41. f4
{[%clk 0:00:30.4]} 41... Rb1 {[%clk 0:00:26.2]} 42. f5 {[%clk 0:00:28.4]} 42...
Kg8 {[%clk 0:00:21.5]} 43. Rb7 {[%clk 0:00:26.2]} 43... b3 {[%clk 0:00:21.9]}
44. g4 {[%clk 0:00:20.1]} 44... Kf8 {[%clk 0:00:15.9]} 45. Kh2 {[%clk 0:00:16]}
45... b2 {[%clk 0:00:15.7]} 46. Kg2 {[%clk 0:00:15.6]} 46... Ke8 {[%clk
0:00:15.5]} 47. Kh2 {[%clk 0:00:10.3]} 47... Kd8 {[%clk 0:00:15.4]} 48. g5
{[%clk 0:00:06.5]} 48... hxg5 {[%clk 0:00:13.1]} 49. f6 {[%clk 0:00:05.9]} 49...
gxf6 {[%clk 0:00:06.9]} 50. h6 {[%clk 0:00:05.8]} 50... Re1 {[%clk 0:00:02.1]}
51. Rxb2 {[%clk 0:00:02.9]} 51... Re8 {[%clk 0:00:02]} 52. Rb8+ {[%clk 0:00:01]}
52... Ke7 {[%clk 0:00:01.9]} 0-1

[Event "*** Titled Tuesday Blitz"]
[Site "Chess.com"]
[Date "2020.04.28"]
[Round "6"]
[White "Majesth"]
[Black "korkmaz16"]
[Result "1-0"]
[WhiteElo "2475"]
[BlackElo "2280"]
[TimeControl "180+1"]
[EndTime "11:07:54 PDT"]
[Termination "Majesth won by resignation"]

1. d4 {[%clk 0:03:00.9]} 1... Nf6 {[%clk 0:02:58.2]} 2. Nc3 {[%clk 0:03:00.6]}
2... d5 {[%clk 0:02:53.4]} 3. Bf4 {[%clk 0:03:01]} 3... a6 {[%clk 0:02:48.8]} 4.
e3 {[%clk 0:02:59.7]} 4... c5 {[%clk 0:02:45.4]} 5. Nf3 {[%clk 0:02:59.6]} 5...
Nc6 {[%clk 0:02:42.1]} 6. Be2 {[%clk 0:03:00.1]} 6... c4 {[%clk 0:02:31.5]} 7.
Ne5 {[%clk 0:02:46.4]} 7... Bf5 {[%clk 0:02:27.7]} 8. O-O {[%clk 0:02:42.2]}
8... e6 {[%clk 0:02:27.1]} 9. Nxc6 {[%clk 0:02:30]} 9... bxc6 {[%clk 0:02:25.8]}
10. Na4 {[%clk 0:02:30.9]} 10... Bd6 {[%clk 0:02:20.3]} 11. Bxd6 {[%clk
0:02:02.8]} 11... Qxd6 {[%clk 0:02:17.6]} 12. b3 {[%clk 0:02:03.7]} 12... Qa3
{[%clk 0:01:52]} 13. Nc5 {[%clk 0:01:43.5]} 13... c3 {[%clk 0:01:15.3]} 14. f3
{[%clk 0:01:41.4]} 14... O-O {[%clk 0:01:12.3]} 15. Bd3 {[%clk 0:01:32.2]} 15...
Bg6 {[%clk 0:01:01.9]} 16. Bxg6 {[%clk 0:01:12.6]} 16... hxg6 {[%clk 0:01:01]}
17. Qd3 {[%clk 0:01:13.5]} 17... e5 {[%clk 0:00:45.3]} 18. Qxc3 {[%clk
0:01:07.5]} 18... exd4 {[%clk 0:00:43.7]} 19. exd4 {[%clk 0:01:08.4]} 19... Rfe8
{[%clk 0:00:42.9]} 20. Rfe1 {[%clk 0:00:55.9]} 20... a5 {[%clk 0:00:39.8]} 21.
Kf2 {[%clk 0:00:50.2]} 21... Qb4 {[%clk 0:00:27.5]} 22. Qd3 {[%clk 0:00:39.5]}
22... g5 {[%clk 0:00:17.1]} 23. a3 {[%clk 0:00:39.1]} 23... Qb6 {[%clk
0:00:16.6]} 24. h3 {[%clk 0:00:29.4]} 24... Qc7 {[%clk 0:00:15]} 25. Qf5 {[%clk
0:00:25.7]} 25... Qf4 {[%clk 0:00:12.3]} 26. Qxf4 {[%clk 0:00:21.7]} 26... gxf4
{[%clk 0:00:13]} 27. h4 {[%clk 0:00:21.7]} 27... Kf8 {[%clk 0:00:09.2]} 28. a4
{[%clk 0:00:21.3]} 28... Rab8 {[%clk 0:00:08.2]} 29. Nd3 {[%clk 0:00:17.7]}
29... Nh5 {[%clk 0:00:07.5]} 30. Re5 {[%clk 0:00:14.5]} 30... f6 {[%clk
0:00:07.7]} 31. Rxh5 {[%clk 0:00:09.9]} 31... Kf7 {[%clk 0:00:08.1]} 32. Nxf4
{[%clk 0:00:07.8]} 32... Re7 {[%clk 0:00:08]} 33. Re1 {[%clk 0:00:06.7]} 33...
Rbe8 {[%clk 0:00:08.5]} 34. Rxe7+ {[%clk 0:00:06.2]} 34... Rxe7 {[%clk
0:00:08.6]} 35. g4 {[%clk 0:00:06.7]} 35... Rb7 {[%clk 0:00:09.1]} 36. Rh8
{[%clk 0:00:05.8]} 36... Rb4 {[%clk 0:00:09.5]} 37. Ke3 {[%clk 0:00:04.9]} 37...
c5 {[%clk 0:00:09.6]} 38. Rd8 {[%clk 0:00:04.2]} 38... cxd4+ {[%clk 0:00:09.9]}
39. Kd3 {[%clk 0:00:03.6]} 39... Rb7 {[%clk 0:00:09.7]} 40. Rxd5 {[%clk
0:00:03.6]} 40... g6 {[%clk 0:00:09.8]} 41. Rxd4 {[%clk 0:00:04.5]} 41... g5
{[%clk 0:00:09.2]} 42. Nd5 {[%clk 0:00:04.1]} 42... Kg6 {[%clk 0:00:09.3]} 43.
Re4 {[%clk 0:00:04.5]} 43... f5 {[%clk 0:00:09.4]} 44. Re6+ {[%clk 0:00:04.8]}
44... Kf7 {[%clk 0:00:09.7]} 45. gxf5 {[%clk 0:00:05.7]} 45... gxh4 {[%clk
0:00:10.3]} 46. Rf6+ {[%clk 0:00:05.9]} 46... Kg7 {[%clk 0:00:10]} 47. Rg6+
{[%clk 0:00:06.8]} 47... Kh7 {[%clk 0:00:10.9]} 48. Rg4 {[%clk 0:00:07.3]} 48...
h3 {[%clk 0:00:11.8]} 49. Rh4+ {[%clk 0:00:08.1]} 49... Kg7 {[%clk 0:00:12.4]}
50. Rxh3 {[%clk 0:00:09]} 50... Kf7 {[%clk 0:00:13.3]} 51. Rh7+ {[%clk
0:00:08.8]} 51... Kf8 {[%clk 0:00:12.7]} 52. Rxb7 {[%clk 0:00:09.7]} 1-0